bitfinex/quotes_SOLUSD_20250209
["timestamp","ask_amount","ask_price","bid_price","bid_amount"]
[1739141662641,45.27390909,197.79,197.71,5.0579]
[1739141662937,5.2,197.79,197.74,40.07390909]
[1739141663253,40.07390909,197.83,197.74,40.07390909]
[1739141663433,71.05740406,197.87,197.78,40.07390909]
[1739141663639,71.05740406,197.87,197.71,5.81635908]
[1739141663640,30.98349497,197.87,197.8,40.07390909]
[1739141664237,45.25390909,197.89,197.8,40.07390909]
[1739141664437,40.07390909,197.89,197.8,40.07390909]
[1739141664739,40.07390909,197.93,197.84,40.07390909]
[1739141665241,20.0,197.9,197.84,40.07390909]
[1739141665442,40.07390909,197.95,197.86,40.07390909]
[1739141665625,40.07390909,197.93,197.86,40.07390909]
[1739141665822,40.07390909,197.95,197.86,40.07390909]
[1739141666032,40.07390909,198.01,197.92,40.07390909]
[1739141666444,20.12549,197.97,197.92,40.07390909]
[1739141666644,0.12549,197.97,197.92,40.07390909]
[1739141667023,0.12549,197.99,197.92,40.07390909]
[1739141667746,40.07390909,198.05,197.96,40.07390909]
[1739141667954,40.07390909,198.05,197.98,40.07390909]
[1739141668124,20.0,198.03,197.98,40.07390909]
[1739141668328,40.07390909,198.03,197.96,40.07390909]
[1739141668521,0.03,197.99,197.96,40.07390909]
[1739141669829,0.03,197.99,197.98,40.07390909]
[1739141672348,0.03,197.99,197.96,40.07390909]
[1739141673282,0.03,197.99,197.98,40.07390909]
[1739141673970,0.03,197.99,197.94,40.07390909]
[1739141674273,0.03,197.99,197.92,40.07390909]
[1739141675258,0.03,197.99,197.94,40.07390909]
[1739141675483,0.03,197.99,197.97,40.07390909]
[1739141675661,0.03,197.99,197.98,0.75746556]
[1739141675857,0.03,198.08,197.98,54.24322318]
[1739141676084,0.03,198.08,198.06,40.07390909]
[1739141677283,0.03,198.08,198.07,0.75702412]
[1739141678115,0.03,198.08,198.06,40.83090731]
[1739141679896,0.03,198.15,198.07,53.48575762]
[1739141680088,0.03,198.15,198.14,40.07390909]
[1739141681579,0.03,198.15,198.14,40.8307349]
[1739141681982,0.03,198.15,198.14,40.07390909]
[1739141682381,0.0001,198.15,198.14,53.48575762]
[1739141682588,0.03,198.19,198.17,20.0]
[1739141682894,0.03,198.19,198.18,60.83047448]
[1739141683065,0.03,198.19,198.18,100.90438357]
[1739141683262,0.03,198.19,198.18,114.3162321]
[1739141683467,0.03,198.19,198.18,115.55966671]
[1739141683883,0.03,198.21,198.19,13.41184853]
[1739141684089,0.03,198.21,198.2,94.31608114]
[1739141684268,0.03,198.21,198.2,96.31608114]
[1739141684470,0.03,198.28,198.25,20.0]
[1739141684712,0.03,198.28,198.27,40.07390909]
[1739141685095,0.03,198.28,198.27,93.55966671]
[1739141685611,0.03,198.39,198.32,13.41184853]
[1739141685790,0.03,198.39,198.38,40.07390909]
[1739141686588,0.03,198.39,198.38,80.14781818]
[1739141686771,0.03,198.39,198.38,94.55966671]
[1739141687088,0.03,198.39,198.38,95.31532566]
[1739141687473,5.0362,198.56,198.41,20.0]
[1739141687782,5.0357,198.58,198.5,40.07390909]
[1739141688184,0.03,198.59,198.56,40.07390909]
[1739141688585,0.03,198.59,198.54,40.07390909]
[1739141689002,5.0656,198.59,198.52,40.07390909]
[1739141689199,40.07390909,198.54,198.46,40.07390909]
[1739141689396,20.0,198.49,198.42,40.07390909]
[1739141689600,20.0,198.47,198.4,40.07390909]
[1739141689800,20.0,198.43,198.38,40.07390909]
[1739141690006,20.0,198.43,198.36,40.07390909]
[1739141690374,40.07390909,198.38,198.3,40.07390909]
[1739141690573,40.07390909,198.34,198.26,40.07390909]
[1739141690769,20.0,198.29,198.22,40.07390909]
[1739141691071,40.07390909,198.28,198.2,40.07390909]
[1739141691277,40.07390909,198.28,198.18,40.07390909]
[1739141691479,40.07390909,198.26,198.18,40.07390909]
[1739141691676,0.12549,198.23,198.16,40.07390909]
[1739141692257,0.12549,198.25,198.16,40.07390909]
[1739141692483,0.12549,198.23,198.16,40.07390909]
[1739141692678,0.12549,198.23,198.14,40.07390909]
[1739141693050,40.07390909,198.3,198.2,40.07390909]
[1739141693242,40.07390909,198.34,198.24,40.07390909]
[1739141693443,40.07390909,198.34,198.26,40.07390909]
[1739141693781,40.07390909,198.36,198.28,40.07390909]
[1739141694069,40.07390909,198.38,198.28,40.07390909]
[1739141694244,40.07390909,198.38,198.3,40.07390909]
[1739141694645,40.07390909,198.4,198.32,40.07390909]
[1739141695273,0.12549,198.39,198.32,40.07390909]
[1739141696462,0.12549,198.35,198.26,40.07390909]
[1739141696665,0.12549,198.33,198.26,40.07390909]
[1739141696969,40.07390909,198.32,198.24,40.07390909]
[1739141697554,40.07390909,198.38,198.28,40.07390909]
[1739141697756,40.07390909,198.42,198.33,40.07390909]
[1739141697973,0.12549,198.41,198.33,40.07390909]
[1739141699349,0.12549,198.33,198.25,40.07390909]
[1739141699549,40.07390909,198.32,198.23,40.07390909]
[1739141700463,13.53733853,198.31,198.23,40.07390909]
[1739141700650,0.12549,198.25,198.18,0.063]
[1739141700987,0.12549,198.23,198.18,0.063]
[1739141702178,13.53733853,198.23,198.18,0.063]
[1739141703280,40.07390909,198.3,198.21,40.07390909]
[1739141703587,20.0,198.27,198.21,40.07390909]
[1739141704157,53.61124762,198.26,198.18,0.063]
[1739141704373,13.53733853,198.23,198.18,0.063]
[1739141704579,13.53733853,198.19,198.18,0.063]
[1739141705982,20.0,198.19,198.18,0.063]
[1739141706191,20.12549,198.19,198.18,0.063]
[1739141706393,40.07390909,198.24,198.18,0.063]
[1739141706572,40.07390909,198.26,198.18,40.13690909]
[1739141706881,20.12549,198.22,198.18,40.13690909]
[1739141707082,0.12549,198.22,198.18,0.063]
[1739141707253,0.12549,198.24,198.18,0.063]
[1739141707662,40.19939909,198.24,198.18,0.063]
[1739141708177,13.41184853,198.25,198.18,0.063]
[1739141708700,0.12549,198.24,198.18,0.063]
[1739141708990,40.07390909,198.28,198.2,40.07390909]
[1739141709191,13.53733853,198.27,198.2,40.07390909]
[1739141709565,13.53733853,198.27,198.18,40.13690909]
[1739141709960,0.12549,198.2,198.18,0.063]
[1739141710176,53.61124762,198.19,198.18,0.063]
[1739141710561,0.12549,198.13,198.04,40.07390909]
[1739141710765,13.53733853,198.12,198.04,40.07390909]
[1739141711095,0.12549,198.08,198.0,40.07390909]
[1739141711390,13.53733853,198.06,197.98,40.13690909]
[1739141712362,13.53733853,198.02,197.98,0.063]
[1739141712584,53.61124762,197.99,197.98,0.063]
[1739141712957,58.66194762,197.99,197.98,0.063]
[1739141713183,59.66194762,197.99,197.98,0.063]
[1739141713361,0.12549,197.93,197.84,40.07390909]
[1739141713565,13.41184853,197.98,197.84,40.07390909]
[1739141713566,13.53733853,197.91,197.84,40.07390909]
[1739141714196,13.53733853,197.91,197.82,40.07390909]
[1739141714376,13.53733853,197.87,197.8,40.07390909]
[1739141714574,1.0,197.93,197.76,40.07390909]
[1739141714575,13.53733853,197.83,197.76,40.07390909]
[1739141714790,13.53733853,197.81,197.74,40.07390909]
[1739141716087,13.53733853,197.79,197.72,40.07390909]
[1739141716395,13.53733853,197.77,197.7,2.963]
[1739141716577,0.12549,197.75,197.7,2.963]
[1739141716965,0.12549,197.75,197.7,48.09480909]
[1739141717172,40.07390909,197.78,197.7,48.09480909]
[1739141717374,13.53733853,197.77,197.7,48.09480909]
[1739141718097,13.53733853,197.77,197.72,0.063]
[1739141718300,20.0,197.85,197.72,0.063]
[1739141718301,40.07390909,197.8,197.72,40.13690909]
[1739141718498,40.07390909,197.86,197.78,40.07390909]
[1739141718798,40.07390909,197.9,197.82,40.07390909]
[1739141718969,40.07390909,197.92,197.84,40.07390909]
[1739141719375,45.47390909,197.94,197.86,40.07390909]
[1739141719572,40.07390909,197.96,197.88,40.07390909]
[1739141719899,40.07390909,198.02,197.94,40.07390909]
[1739141720197,40.07390909,198.02,197.89,0.75785656]
[1739141720198,40.07390909,198.06,197.98,40.07390909]
[1739141720401,8.6067,198.15,197.9,40.07390909]
[1739141720402,40.07390909,198.08,198.0,40.07390909]
[1739141720710,40.07390909,198.14,198.04,40.07390909]
[1739141720868,40.07390909,198.16,198.08,40.07390909]
[1739141721067,71.05740406,198.18,198.1,40.07390909]
[1739141721300,30.98349497,198.18,198.12,40.07390909]
[1739141721710,40.07390909,198.22,198.14,40.07390909]
[1739141721997,40.07390909,198.26,198.18,40.07390909]
[1739141722379,40.07390909,198.24,198.16,40.07390909]
[1739141722768,40.07390909,198.26,198.16,40.07390909]
[1739141722999,40.07390909,198.26,198.18,40.07390909]
[1739141723507,13.53733853,198.23,198.14,40.07390909]
[1739141723690,0.12549,198.17,198.1,40.07390909]
[1739141723884,13.53733853,198.17,198.1,40.07390909]
[1739141724283,13.53733853,198.17,198.01,1.5245]
[1739141724284,13.53733853,198.15,198.08,40.07390909]
[1739141724480,13.53733853,198.15,198.06,40.07390909]
[1739141724683,36.06856099,198.14,198.12,39.7330237]
[1739141724885,40.07390909,198.14,198.12,39.7330237]
[1739141725093,45.12090909,198.14,198.12,39.7330237]
[1739141725401,45.12090909,198.14,198.12,39.6716637]
[1739141725698,45.12090909,198.14,198.13,15.03978061]
[1739141726373,40.07390909,198.14,198.13,15.03978061]
[1739141726703,1.0,198.21,198.06,40.07390909]
[1739141726704,40.07390909,198.16,198.06,40.07390909]
[1739141728900,40.07390909,198.14,198.06,40.07390909]
[1739141729101,40.07390909,198.08,198.0,40.07390909]
[1739141729483,40.07390909,198.08,197.98,40.07390909]
[1739141730077,20.0,198.01,197.94,40.07390909]
[1739141730305,20.0,198.01,197.9,11.6666]
[1739141730306,40.07390909,197.98,197.9,40.07390909]
[1739141730477,20.0,197.95,197.88,40.07390909]
[1739141730677,20.0,197.91,197.86,40.07390909]
[1739141731681,25.0528,197.91,197.84,40.07390909]
[1739141732009,20.0,197.87,197.82,40.07390909]
[1739141732904,25.0539,197.87,197.82,40.07390909]
[1739141733281,40.07390909,197.9,197.82,40.07390909]
[1739141733611,45.12700909,197.9,197.82,40.07390909]
[1739141733784,40.07390909,197.92,197.84,40.07390909]
[1739141733989,40.07390909,197.96,197.9,40.07390909]
[1739141734206,40.07390909,197.98,197.9,40.07390909]
[1739141734396,20.0,197.95,197.9,40.07390909]
[1739141734734,40.07390909,198.0,197.92,40.07390909]
[1739141735013,40.07390909,198.0,197.83,1.0]
[1739141735014,40.07390909,198.06,197.98,40.07390909]
[1739141735176,45.12230909,198.08,198.0,40.07390909]
[1739141735382,40.07390909,198.1,198.02,40.07390909]
[1739141735682,40.07390909,198.14,198.06,40.07390909]
[1739141735879,40.10390909,198.16,198.08,40.07390909]
[1739141736408,0.03,198.16,198.1,40.07390909]
[1739141736782,0.03,198.16,198.12,40.07390909]
[1739141737315,0.03,198.16,198.14,40.07390909]
[1739141738899,0.03,198.16,198.14,41.83061861]
[1739141739099,0.03,198.16,198.15,19.45844853]
[1739141739527,45.11640909,198.32,198.19,20.0]
[1739141739702,45.11640909,198.32,198.24,40.07390909]
[1739141740122,45.11590909,198.34,198.26,40.07390909]
[1739141740421,40.07390909,198.34,198.26,40.07390909]
[1739141740629,5.0416,198.35,198.28,40.07390909]
[1739141740830,0.03,198.36,198.3,40.07390909]
[1739141741017,0.03,198.36,198.34,40.07390909]
[1739141742533,0.03,198.36,198.34,40.82990788]
[1739141742895,0.03,198.36,198.32,40.07390909]
[1739141743118,40.10390909,198.36,198.28,40.07390909]
[1739141743421,40.07390909,198.34,198.26,40.07390909]
[1739141743617,40.07390909,198.32,198.24,40.07390909]
[1739141743798,40.07390909,198.3,198.22,40.07390909]
[1739141744817,40.07390909,198.28,198.2,40.07390909]
[1739141745024,40.07390909,198.26,198.16,40.07390909]
[1739141745226,60.07390909,198.22,198.14,40.07390909]
[1739141745421,40.07390909,198.2,198.12,40.07390909]
[1739141745602,40.07390909,198.2,198.1,40.07390909]
[1739141745801,40.07390909,198.18,198.1,40.07390909]
[1739141746002,40.07390909,198.16,198.08,40.07390909]
[1739141746231,20.0,198.13,198.06,40.07390909]
[1739141746442,40.07390909,198.11,198.02,40.07390909]
[1739141746603,40.07390909,198.09,198.02,40.07390909]
[1739141746934,60.07390909,198.07,197.98,40.07390909]
[1739141747104,5.0494,198.04,197.98,40.07390909]
[1739141747444,40.07390909,198.03,197.94,40.07390909]
[1739141747937,20.0,197.96,197.92,40.07390909]
[1739141748099,20.0,197.92,197.86,40.13690909]
[1739141748299,20.0,197.92,197.86,0.063]
[1739141749036,40.07390909,197.91,197.86,0.063]
[1739141749233,40.07390909,197.95,197.87,40.07390909]
[1739141749401,20.0,197.92,197.87,40.07390909]
[1739141750208,40.07390909,197.95,197.87,40.07390909]
[1739141750925,13.41184853,197.99,197.87,40.07390909]
[1739141750926,40.07390909,197.99,197.89,40.07390909]
[1739141751102,40.07390909,198.01,197.91,40.07390909]
[1739141751302,40.07390909,198.03,197.95,40.07390909]
[1739141751614,40.07390909,198.05,197.95,40.07390909]
[1739141751934,20.0,198.02,197.95,40.07390909]
[1739141753026,40.07390909,198.03,197.95,40.07390909]
[1739141753337,40.07390909,198.07,197.99,40.07390909]
[1739141753537,40.07390909,198.09,198.01,40.07390909]
[1739141753733,12.6157,198.17,198.03,40.07390909]
[1739141753734,40.07390909,198.11,198.03,40.07390909]
[1739141754238,40.07390909,198.13,198.05,40.07390909]
[1739141754430,40.07390909,198.15,198.05,40.07390909]
[1739141754626,40.07390909,198.15,198.06,5.0489]
[1739141754827,0.03,198.16,198.06,5.0489]
[1739141754828,0.03,198.16,198.11,40.07390909]
[1739141755147,0.03,198.16,198.13,40.07390909]
[1739141755439,0.03,198.16,198.15,40.07390909]
[1739141756233,40.07390909,198.27,198.15,40.83058404]
[1739141756428,40.07390909,198.27,198.19,40.07390909]
[1739141756714,40.07390909,198.27,198.2,5.0454]
[1739141757148,40.07390909,198.29,198.21,40.07390909]
[1739141757437,40.07390909,198.31,198.23,40.07390909]
[1739141758649,40.07390909,198.33,198.23,45.11840909]
[1739141758824,0.03,198.36,198.23,45.11840909]
[1739141758825,40.07390909,198.35,198.27,40.07390909]
[1739141760345,40.07390909,198.35,198.27,45.11750909]
[1739141760712,40.07390909,198.31,198.21,40.07390909]
[1739141760918,40.07390909,198.29,198.21,40.07390909]
[1739141761113,40.07390909,198.27,198.19,40.07390909]
[1739141761334,40.07390909,198.23,198.15,40.07390909]
[1739141761625,40.07390909,198.19,198.1,40.07390909]
[1739141761820,40.07390909,198.17,198.08,40.07390909]
[1739141762138,13.41184853,198.2,198.06,40.07390909]
[1739141762139,40.07390909,198.13,198.06,40.07390909]
[1739141762330,40.07390909,198.11,198.02,40.07390909]
[1739141762653,40.07390909,198.09,198.02,40.07390909]
[1739141762845,40.07390909,198.09,198.0,40.07390909]
[1739141763046,40.07390909,198.05,197.96,40.07390909]
[1739141763350,40.07390909,198.03,197.94,40.07390909]
[1739141763565,40.07390909,198.01,197.94,40.07390909]
[1739141763718,40.07390909,198.01,197.92,40.07390909]
[1739141763922,40.07390909,197.99,197.9,40.07390909]
[1739141764233,40.07390909,197.97,197.88,40.07390909]
[1739141764431,40.07390909,197.95,197.88,40.07390909]
[1739141764631,40.07390909,197.93,197.87,0.063]
[1739141765844,40.07390909,197.95,197.87,0.063]
[1739141766044,40.07390909,197.97,197.88,40.07390909]
[1739141766249,40.07390909,198.01,197.92,40.07390909]
[1739141766447,40.07390909,198.01,197.94,40.07390909]
[1739141766653,40.07390909,198.03,197.94,40.07390909]
[1739141766943,40.07390909,198.07,198.0,40.07390909]
[1739141767265,40.07390909,198.11,198.02,40.07390909]
[1739141767455,40.07390909,198.13,198.04,40.07390909]
[1739141767747,40.07390909,198.17,198.08,40.07390909]
[1739141768247,18.8703,198.26,198.03,1.7570498]
[1739141768248,40.07390909,198.21,198.12,40.07390909]
[1739141768434,20.0,198.2,198.14,40.07390909]
[1739141768640,40.07390909,198.23,198.16,40.07390909]
[1739141768857,40.07390909,198.27,198.2,40.07390909]
[1739141769030,16.47036545,198.35,198.24,40.07390909]
[1739141769031,40.07390909,198.31,198.24,40.07390909]
[1739141769234,40.07390909,198.33,198.24,40.07390909]
[1739141770562,20.0,198.3,198.24,40.07390909]
[1739141770858,40.07390909,198.27,198.18,40.07390909]
[1739141771345,40.07390909,198.27,198.11,13.37562856]
[1739141771346,40.07390909,198.25,198.16,40.07390909]
[1739141772332,20.0,198.2,198.06,1.0]
[1739141772663,40.07390909,198.19,198.1,40.07390909]
[1739141772954,40.07390909,198.19,198.0,41.07390909]
[1739141772955,13.41184853,198.14,198.06,40.07390909]
[1739141773133,13.41184853,198.14,198.04,40.07390909]
[1739141773134,13.41184853,198.12,198.04,40.07390909]
[1739141773330,20.0,198.07,198.02,40.07390909]
[1739141773553,20.0,198.07,198.0,40.07390909]
[1739141773554,20.0,198.06,198.0,40.07390909]
[1739141773759,20.0,198.04,197.96,40.07390909]
[1739141773960,20.0,198.0,197.94,40.07390909]
[1739141774341,13.41184853,198.04,197.87,0.063]
[1739141774342,20.0,197.96,197.92,40.07390909]
[1739141774657,20.0,197.94,197.9,40.07390909]
[1739141774830,20.0,197.92,197.87,0.063]
[1739141775549,40.07390909,197.93,197.87,0.063]
[1739141776159,20.0,197.92,197.87,0.063]
[1739141777272,40.07390909,197.97,197.88,40.07390909]
[1739141777469,40.07390909,198.01,197.92,40.07390909]
[1739141777773,20.0,198.0,197.94,40.07390909]
[1739141778157,20.0,198.0,197.92,40.07390909]
[1739141778348,40.07390909,198.01,197.92,40.07390909]
[1739141778552,40.07390909,198.03,197.94,40.07390909]
[1739141778754,40.07390909,198.05,197.96,40.07390909]
[1739141778962,40.07390909,198.07,197.98,40.07390909]
[1739141779269,40.07390909,198.09,198.0,40.07390909]
[1739141779648,1.0,198.15,198.01,0.75736159]
[1739141779881,40.07390909,198.17,198.07,40.07390909]
[1739141780050,40.07390909,198.17,198.09,40.07390909]
[1739141780246,40.07390909,198.17,198.03,13.41184853]
[1739141780247,40.07390909,198.19,198.11,40.07390909]
[1739141780446,40.07390909,198.19,198.11,45.12150909]
[1739141780643,40.07390909,198.23,198.13,40.07390909]
[1739141780863,40.07390909,198.23,198.15,40.07390909]
[1739141781268,40.07390909,198.23,198.13,40.07390909]
[1739141781546,20.0,198.16,198.09,40.07390909]
[1739141781778,40.07390909,198.15,198.05,40.07390909]
[1739141781948,40.07390909,198.11,198.03,40.07390909]
[1739141782149,40.07390909,198.11,198.01,40.07390909]
[1739141782346,40.07390909,198.07,197.99,40.07390909]
[1739141783576,5.0489,198.06,197.99,40.07390909]
[1739141784153,5.0489,198.06,197.97,40.07390909]
[1739141784352,40.07390909,198.05,197.97,40.07390909]
[1739141784567,40.07390909,198.05,197.95,40.07390909]
[1739141784986,40.07390909,198.03,197.95,40.07390909]
[1739141785274,40.07390909,198.03,197.93,40.07390909]
[1739141785275,13.41184853,198.02,197.93,40.07390909]
[1739141785981,5.0502,198.01,197.93,40.07390909]
[1739141787178,40.07390909,198.07,197.97,40.07390909]
[1739141787389,40.07390909,198.07,197.9,40.07390909]
[1739141787390,40.07390909,198.1,198.01,40.07390909]
[1739141787581,45.12130909,198.12,198.03,40.07390909]
[1739141788052,40.07390909,198.12,198.03,5.0496]
[1739141788380,40.07390909,198.18,198.09,40.07390909]
[1739141788572,5.0453,198.21,198.13,40.07390909]
[1739141788780,20.0,198.18,198.13,40.07390909]
[1739141789584,20.0,198.19,198.13,40.07390909]
[1739141789786,0.03,198.16,198.13,40.07390909]
[1739141790780,0.03,198.16,198.12,5.0474]
[1739141790781,0.03,198.16,198.15,40.07390909]
[1739141791286,0.03,198.16,198.15,54.24238454]
[1739141791783,0.03,198.27,198.18,20.0]
[1739141791991,0.03,198.27,198.22,40.07390909]
[1739141793787,0.03,198.27,198.26,40.07390909]
[1739141794366,0.03,198.27,198.22,40.07390909]
[1739141794666,40.10390909,198.27,198.18,40.07390909]
[1739141794868,40.07390909,198.23,198.16,40.07390909]
[1739141795074,40.07390909,198.23,198.14,40.07390909]
[1739141795262,40.07390909,198.19,198.12,40.07390909]
[1739141795460,40.07390909,198.17,198.08,40.07390909]
[1739141795661,5.0464,198.16,198.08,40.07390909]
[1739141795966,40.07390909,198.13,198.04,40.07390909]
[1739141796483,40.07390909,198.11,198.04,40.07390909]
[1739141796688,40.07390909,198.11,198.02,40.07390909]
[1739141796891,40.07390909,198.09,198.02,40.07390909]
[1739141797063,60.07390909,198.09,198.02,40.07390909]
[1739141797591,40.07390909,198.13,198.04,40.07390909]
[1739141797793,40.07390909,198.17,198.09,40.07390909]
[1739141798514,45.11950909,198.19,198.11,40.07390909]
[1739141798714,40.07390909,198.21,198.13,40.07390909]
[1739141799089,20.0,198.2,198.13,40.07390909]
[1739141799709,40.07390909,198.23,198.13,40.07390909]
[1739141800024,40.07390909,198.23,198.13,45.12090909]
[1739141800210,45.11860909,198.23,198.13,40.07390909]
[1739141800730,40.07390909,198.25,198.15,40.07390909]
[1739141801018,40.07390909,198.29,198.21,40.07390909]
[1739141801213,5.0431,198.29,198.21,40.07390909]
[1739141801798,45.11670909,198.31,198.21,40.07390909]
[1739141802003,45.11670909,198.31,198.21,45.11890909]
[1739141802204,40.07390909,198.31,198.21,45.11890909]
[1739141802435,18.45414853,198.33,198.23,40.07390909]
[1739141802436,40.07390909,198.33,198.23,40.07390909]
[1739141802596,45.11610909,198.33,198.25,40.07390909]
[1739141803014,45.11610909,198.33,198.19,26.02544853]
[1739141803015,20.0,198.26,198.19,40.07390909]
[1739141803204,40.07390909,198.23,198.14,40.07390909]
[1739141803915,40.07390909,198.21,198.12,40.07390909]
[1739141804126,40.07390909,198.17,198.11,0.063]
[1739141804299,40.07390909,198.15,198.11,0.063]
[1739141805038,5.16,198.22,198.11,0.063]
[1739141805039,40.07390909,198.23,198.13,40.07390909]
[1739141805201,40.07390909,198.23,198.15,40.07390909]
[1739141805913,45.11870909,198.23,198.15,40.07390909]
[1739141806532,45.11870909,198.23,198.15,45.12050909]
[1739141808146,20.0,198.2,198.15,40.07390909]
[1739141808315,60.07390909,198.19,198.11,0.063]
[1739141808623,40.07390909,198.17,198.11,0.063]
[1739141810008,60.07390909,198.19,198.11,5.1106]
[1739141810175,40.07390909,198.23,198.16,40.07390909]
[1739141810384,5.0445,198.24,198.16,40.07390909]
[1739141810990,5.0445,198.24,198.12,40.07390909]
[1739141810991,40.07390909,198.21,198.12,40.07390909]
[1739141811184,40.07390909,198.19,198.11,0.063]
[1739141811386,40.07390909,198.17,198.11,0.063]
[1739141812187,5.0464,198.16,198.11,0.063]
[1739141812584,1.0,198.23,198.11,0.063]
[1739141812585,40.07390909,198.21,198.12,40.07390909]
[1739141812914,40.07390909,198.21,198.14,40.07390909]
[1739141813607,40.07390909,198.23,198.16,40.07390909]
[1739141813916,0.03,198.27,198.18,40.07390909]
[1739141813917,40.10390909,198.27,198.18,40.07390909]
[1739141814088,0.03,198.27,198.2,40.07390909]
[1739141814290,0.03,198.27,198.22,40.07390909]
[1739141815215,0.03,198.27,198.24,40.07390909]
[1739141817992,0.03,198.27,198.24,45.11810909]
[1739141818309,0.03,198.27,198.26,40.07390909]
[1739141820316,0.03,198.27,198.26,45.11770909]
[1739141820899,0.03,198.27,198.21,40.07390909]
[1739141823201,20.0,198.25,198.21,40.07390909]
[1739141823525,40.07390909,198.25,198.17,40.07390909]
[1739141824391,5.0443,198.24,198.17,40.07390909]
[1739141824706,40.07390909,198.25,198.17,40.07390909]
[1739141824909,5.044,198.26,198.19,40.07390909]
[1739141825219,40.10390909,198.27,198.23,40.07390909]
[1739141825220,0.03,198.27,198.23,40.07390909]
[1739141826509,0.03,198.27,198.24,5.0443]
[1739141829624,0.03,198.27,198.23,40.07390909]
[1739141830595,0.03,198.27,198.21,40.07390909]
[1739141830800,40.10390909,198.27,198.19,40.07390909]
[1739141832426,20.0,198.26,198.21,40.07390909]
[1739141833422,0.03,198.27,198.21,40.07390909]
[1739141834514,0.03,198.27,198.22,5.0448]
[1739141837031,0.03,198.27,198.22,45.11870909]
[1739141837213,0.03,198.27,198.26,40.07390909]
[1739141838418,0.03,198.27,198.26,45.11770909]
[1739141839709,0.03,198.27,198.24,45.11800909]
[1739141840124,40.07390909,198.25,198.18,40.07390909]
[1739141840509,40.10390909,198.27,198.2,40.07390909]
[1739141840826,0.03,198.27,198.2,40.07390909]
[1739141841026,0.03,198.27,198.24,40.07390909]
[1739141841617,0.03,198.27,198.25,5.0441]
[1739141842227,0.03,198.27,198.24,45.11820909]
[1739141842717,0.03,198.27,198.26,40.07390909]
[1739141843231,0.0001,198.27,198.26,53.48575762]
[1739141843416,0.0001,198.27,198.26,54.48575762]
[1739141843616,0.0001,198.27,198.26,58.52955762]
[1739141844236,0.0001,198.27,198.26,59.52955762]
[1739141844537,1.52109091,198.17,198.15,0.063]
[1739141844737,0.52109091,198.12,198.09,15.03978061]
[1739141844911,0.52109091,198.04,198.03,23.84568239]
[1739141845107,0.52109091,198.04,197.99,30.03851897]
[1739141845108,0.52109091,198.0,197.99,30.03851897]
[1739141845636,5.57159091,198.0,197.99,30.03851897]
[1739141845805,88.72610373,198.0,197.99,30.03851897]
[1739141846231,43.60169464,198.0,197.99,30.03851897]
[1739141847716,43.60169464,198.0,197.96,0.063]
[1739141847922,40.07390909,197.97,197.96,0.063]
[1739141848233,40.595,197.97,197.96,0.063]
[1739141848936,3.52778555,197.99,197.96,0.063]
[1739141849140,3.00669464,197.99,197.96,0.063]
[1739141849438,3.00669464,197.99,197.96,14.23227548]
[1739141849736,0.52109091,198.06,197.98,13.41184853]
[1739141849916,0.52109091,198.06,197.99,40.83119695]
[1739141851824,40.595,198.11,198.03,40.07390909]
[1739141852025,40.595,198.11,198.03,40.83104511]
[1739141852840,40.595,198.13,198.06,13.41184853]
[1739141853015,0.52109091,198.13,198.07,40.83090085]
[1739141853741,12.6092,198.27,198.11,40.07390909]
[1739141853742,40.07390909,198.19,198.11,40.07390909]
[1739141854044,40.07390909,198.2,198.13,40.07390909]
[1739141855242,0.52109091,198.16,198.09,40.07390909]
[1739141855636,0.52109091,198.17,198.09,40.07390909]
[1739141855828,0.52109091,198.19,198.11,40.07390909]
[1739141856023,0.0001,198.27,198.15,40.07390909]
[1739141856024,40.07390909,198.22,198.15,40.07390909]
[1739141856343,40.595,198.24,198.17,40.07390909]
[1739141857120,40.595,198.24,198.15,45.87708353]
[1739141857545,40.595,198.16,198.08,40.07390909]
[1739141857747,40.07390909,198.12,198.04,40.07390909]
[1739141858049,40.07390909,198.12,197.98,2.5321]
[1739141858050,40.07390909,198.12,198.02,40.07390909]
[1739141858418,0.52109091,198.06,198.0,40.07390909]
[1739141858731,40.595,198.06,197.98,1.5321]
[1739141858931,40.07390909,198.06,197.99,11.1201]
[1739141859340,40.07390909,198.06,197.99,51.19400909]
[1739141859520,40.07390909,198.1,198.03,40.07390909]
[1739141859720,40.595,198.12,198.03,40.07390909]
[1739141860025,40.595,198.12,198.03,40.83103244]